bitfinex/quotes_SOLUSD_20251031
["timestamp","ask_amount","ask_price","bid_price","bid_amount"]
[1761889204607,5.37778972,185.95,185.9,2.00178971]
[1761889205089,5.37778972,185.95,185.91,2.66178971]
[1761889205398,20.592,185.97,185.93,2.00178971]
[1761889205582,23.24378971,185.98,185.93,2.00178971]
[1761889205888,0.65,185.97,185.93,2.00178971]
[1761889206054,0.65,185.97,185.93,2.66178971]
[1761889206395,6.63236975,185.97,185.91,2.66178971]
[1761889206589,3.98058004,185.96,185.91,2.00178971]
[1761889206882,3.98058004,185.96,185.91,2.66178971]
[1761889206883,5.37778972,185.95,185.91,2.66178971]
[1761889207068,6.02778972,185.95,185.91,2.66178971]
[1761889207469,6.02778972,185.95,185.91,2.00178971]
[1761889207982,6.02778972,185.95,185.91,2.66178971]
[1761889209290,6.02778972,185.95,185.89,15.16833567]
[1761889209291,3.98552334,185.94,185.9,2.00178971]
[1761889209695,3.98552334,185.94,185.9,2.66178971]
[1761889209882,3.98552334,185.94,185.89,71.48882769]
[1761889210065,0.65,185.93,185.89,71.48882769]
[1761889210405,4.4845738,186.03,185.92,11.7906174]
[1761889210569,4.4845738,186.03,185.9,0.94432314]
[1761889210570,10.01203616,186.02,185.98,2.00178971]
[1761889210895,9.36243055,186.01,185.94,5.37807895]
[1761889211059,3.98627012,186.0,185.97,2.00178971]
[1761889211263,3.98627012,185.99,185.97,2.00178971]
[1761889211479,0.65,186.0,185.97,2.00178971]
[1761889211688,3.98758718,185.99,185.97,2.00178971]
[1761889212097,5.37616043,186.01,185.97,2.00178971]
[1761889212395,4.63811336,186.0,185.97,2.00178971]
[1761889212594,4.63811336,186.0,185.95,0.66]
[1761889212595,9.36483923,185.99,185.93,9.78882769]
[1761889212781,3.98811336,185.98,185.93,2.00178971]
[1761889213096,3.98811336,185.97,185.93,2.00178971]
[1761889213279,3.98811336,185.97,185.93,2.66178971]
[1761889213997,3.98811336,185.97,185.94,2.00178971]
[1761889214297,0.65,185.98,185.94,2.00178971]
[1761889214510,3.98944765,185.97,185.94,2.00178971]
[1761889214871,6.02711059,185.98,185.94,2.00178971]
[1761889215091,4.63944625,185.97,185.94,2.00178971]
[1761889215293,0.65,185.97,185.94,2.00178971]
[1761889215482,0.65,185.97,185.93,2.00178971]
[1761889215683,0.65,185.97,185.93,2.66178971]
[1761889216272,3.99200197,185.96,185.94,2.00178971]
[1761889216897,6.02711059,185.98,185.94,2.00178971]
[1761889217227,4.64199264,185.97,185.93,2.00178971]
[1761889217369,3.99199264,185.96,185.93,2.00178971]
[1761889217573,0.65,185.97,185.93,2.66178971]
[1761889217773,3.99317666,185.96,185.93,2.66178971]
[1761889217972,3.99317666,185.96,185.88,34.14089264]
[1761889217973,4.64287636,185.95,185.9,61.7]
[1761889218208,3.99265581,185.94,185.9,63.70178971]
[1761889218497,3.99265581,185.94,185.9,62.36]
[1761889218498,3.99265581,185.93,185.9,62.36]
[1761889218688,0.65,185.94,185.89,2.00178971]
[1761889218999,3.99327773,185.93,185.89,2.66178971]
[1761889219297,5.3784004,185.93,185.89,2.66178971]
[1761889219498,3.99328102,185.92,185.89,2.66178971]
[1761889219796,3.99308961,185.91,185.88,0.1]
[1761889219988,0.65,185.92,185.88,0.76]
[1761889220184,3.9930618,185.91,185.88,2.76178971]
[1761889220498,5.3784004,185.93,185.88,2.76178971]
[1761889220499,5.3784004,185.93,185.89,2.00178971]
[1761889220697,3.99285301,185.92,185.89,2.00178971]
[1761889221000,3.99285301,185.91,185.88,2.76178971]
[1761889221212,6.0284004,185.93,185.88,2.76178971]
[1761889221400,3.99250007,185.92,185.88,2.76178971]
[1761889221604,3.99250007,185.91,185.88,2.76178971]
[1761889221899,6.0284004,185.93,185.88,2.76178971]
[1761889222202,3.99250007,185.92,185.88,2.76178971]
[1761889222405,3.99250007,185.91,185.88,2.76178971]
[1761889222603,6.0284004,185.93,185.88,2.76178971]
[1761889222903,3.99170082,185.92,185.88,2.76178971]
[1761889223114,6.0284004,185.93,185.88,2.76178971]
[1761889223293,3.99116798,185.92,185.88,2.76178971]
[1761889223488,7.38019011,185.93,185.88,2.76178971]
[1761889223685,3.99116758,185.92,185.88,2.76178971]
[1761889223908,8.08019011,185.93,185.88,2.76178971]
[1761889224209,3.99116758,185.92,185.88,2.76178971]
[1761889224409,7.38019011,185.93,185.88,2.76178971]
[1761889224731,4.69066046,185.92,185.88,2.76178971]
[1761889224893,0.7,185.92,185.88,2.76178971]
[1761889226800,3.98980412,185.91,185.88,0.76]
[1761889227011,6.07874795,185.92,185.88,0.76]
[1761889227307,4.68974979,185.91,185.88,0.1]
[1761889227511,0.7,185.91,185.88,0.1]
[1761889228702,9.36788889,185.9,185.88,0.1]
[1761889228904,5.37928293,185.9,185.88,0.1]
[1761889229106,6.05928293,185.9,185.88,0.1]
[1761889229783,5.37899862,185.91,185.88,0.1]
[1761889229991,3.98765341,185.9,185.88,0.1]
[1761889230194,23.27378971,185.94,185.89,0.66]
[1761889230395,23.27378971,185.94,185.88,2.76178971]
[1761889230396,10.04557508,185.93,185.88,2.76178971]
[1761889230611,3.98716628,185.92,185.88,2.76178971]
[1761889230799,3.98716628,185.91,185.88,2.76178971]
[1761889231384,3.98716628,185.91,185.88,0.76]
[1761889231592,3.98716628,185.91,185.88,2.10178971]
[1761889234913,3.98716628,185.91,185.88,2.76178971]
[1761889235111,0.68,185.92,185.89,2.00178971]
[1761889235312,0.68,185.91,185.88,2.10178971]
[1761889238412,13.44475844,185.95,185.88,2.10178971]
[1761889238413,20.592,185.95,185.9,2.00178971]
[1761889238617,3.98014198,185.94,185.91,2.00178971]
[1761889238806,3.98014198,185.93,185.92,2.00178971]
[1761889239720,3.98014198,185.94,185.92,2.00178971]
[1761889239906,3.98014198,185.93,185.91,2.00178971]
[1761889240121,3.98014198,185.92,185.91,2.00178971]
[1761889240696,3.98214528,185.92,185.91,2.00178971]
[1761889241231,3.98214528,185.94,185.91,2.00178971]
[1761889241395,3.98214528,185.93,185.91,2.00178971]
[1761889241601,3.98214528,185.92,185.9,5.37912048]
[1761889241906,5.37791246,185.95,185.91,2.00178971]
[1761889242116,4.66276887,185.94,185.91,2.00178971]
[1761889242319,3.98276887,185.93,185.91,2.00178971]
[1761889242501,3.98276887,185.92,185.91,2.00178971]
[1761889243130,3.98276887,185.93,185.91,7.38073651]
[1761889243300,3.98276887,185.92,185.91,7.38073651]
[1761889243625,3.98276887,185.92,185.91,2.00178971]
[1761889243814,3.98276887,185.93,185.91,2.00178971]
[1761889244123,3.98276887,185.92,185.91,2.00178971]
[1761889244326,3.98276887,185.93,185.91,2.00178971]
[1761889244538,3.98276887,185.92,185.91,2.00178971]
[1761889244907,3.98276887,185.93,185.91,2.00178971]
[1761889245117,3.98276887,185.92,185.91,2.00178971]
[1761889245617,3.98276887,185.92,185.91,2.66178971]
[1761889245808,0.68,185.94,185.91,2.66178971]
[1761889245809,3.98276887,185.93,185.91,2.00178971]
[1761889246006,3.98276887,185.92,185.91,2.00178971]
[1761889246207,3.98276887,185.93,185.89,5.37947968]
[1761889246401,3.98276887,185.92,185.91,2.00178971]
[1761889246906,3.98276887,185.93,185.91,2.00178971]
[1761889247229,3.98276887,185.92,185.91,2.00178971]
[1761889249102,3.98276887,185.92,185.91,8.04073651]
[1761889249303,3.98276887,185.94,185.91,8.04073651]
[1761889249505,0.68,185.98,185.93,2.00178971]
[1761889249724,3.98808848,185.97,185.95,2.00178971]
[1761889249936,3.98808848,185.96,185.95,2.00178971]
[1761889250300,17.92324468,186.04,185.96,9.78882769]
[1761889250301,0.68,186.02,185.96,9.78882769]
[1761889250628,3.98896649,186.01,185.98,2.00178971]
[1761889250823,3.98896649,186.0,185.98,2.00178971]
[1761889251139,3.98896649,185.99,185.98,2.00178971]
[1761889251929,3.98896649,185.99,185.97,2.00178971]
[1761889252128,3.98896649,185.98,185.97,2.00178971]
[1761889253530,3.98896649,186.0,185.97,2.00178971]
[1761889253716,3.98896649,185.99,185.97,2.00178971]
[1761889253916,3.98896649,185.98,185.97,2.00178971]
[1761889254121,0.68,185.99,185.97,2.00178971]
[1761889255219,0.68,185.99,185.94,9.78882769]
[1761889255417,0.68,185.99,185.88,0.76]
[1761889255418,5.37807895,185.94,185.88,0.76]
[1761889255617,20.592,186.0,185.88,0.76]
[1761889255618,3.98521928,185.93,185.9,2.00178971]
[1761889255835,3.98521928,185.93,185.88,0.76]
[1761889255836,0.68,185.96,185.92,2.00178971]
[1761889256131,3.9839688,185.95,185.91,0.66]
[1761889256308,3.9839688,185.94,185.92,2.00178971]
[1761889256507,0.68,185.95,185.92,2.00178971]
[1761889256704,3.98485461,185.94,185.92,2.00178971]
[1761889257126,3.98485461,185.94,185.91,2.00178971]
[1761889258019,6.05666409,185.99,185.93,11.7906174]
[1761889258217,3.98552181,185.98,185.95,2.00178971]
[1761889258440,3.98552181,185.97,185.95,2.00178971]
[1761889258618,3.98552181,185.96,185.94,2.00178971]
[1761889258820,3.98552181,185.95,185.94,2.00178971]
[1761889259017,0.68,185.97,185.94,2.00178971]
[1761889259231,3.98632304,185.96,185.94,2.00178971]
[1761889259540,0.68,185.97,185.94,2.00178971]
[1761889259729,3.98659523,185.96,185.95,2.00178971]
[1761889260234,3.98659523,185.99,185.95,12.4406174]
[1761889260545,3.98659523,185.98,185.96,0.65]
[1761889260715,3.98659523,185.97,185.96,10.43882769]
[1761889260915,3.98659523,185.97,185.96,0.65]
[1761889261429,3.98659523,186.0,185.96,0.65]
[1761889261635,13.43642921,186.07,185.98,9.78882769]
[1761889261636,3.98684803,185.99,185.98,9.78882769]
[1761889261824,6.09490848,186.05,185.98,9.78882769]
[1761889262013,3.98480096,186.04,185.99,0.65]
[1761889262215,3.98480096,186.03,185.99,0.65]
[1761889262415,3.98480096,186.02,186.0,9.78882769]
[1761889262741,3.1274716,186.07,186.01,3.7774716]
[1761889262920,3.98464347,186.06,186.02,3.1274716]
[1761889263119,3.98464347,186.05,186.02,3.1274716]
[1761889263340,3.98464347,186.04,186.02,3.1274716]
[1761889263529,3.98464347,186.04,186.03,3.7774716]
[1761889263834,3.98464347,186.07,186.03,9.15294867]
[1761889264019,3.98464347,186.06,186.04,3.1274716]
[1761889264224,3.98464347,186.05,186.04,0.65]
[1761889264422,0.2,186.08,186.05,9.78882769]
[1761889264630,0.2,186.08,186.07,3.1274716]
[1761889269040,0.92,186.08,186.03,5.37321898]
[1761889269351,0.92,186.08,186.02,61.98432314]
[1761889269352,6.29407211,186.08,186.04,3.1274716]
[1761889269547,0.72,186.07,186.04,3.1274716]
[1761889269846,0.72,186.07,186.03,3.1274716]
[1761889270148,0.72,186.07,186.04,3.1274716]
[1761889270326,0.72,186.07,186.05,3.1274716]
[1761889270521,0.2,186.08,186.05,3.1274716]
[1761889270835,0.92,186.08,186.05,3.1274716]
[1761889271030,0.2,186.08,186.07,3.1274716]
[1761889271727,0.92,186.08,186.06,3.1274716]
[1761889271924,6.29405469,186.08,186.04,3.1274716]
[1761889272243,0.72,186.07,186.04,3.1274716]
[1761889272637,0.72,186.07,186.05,3.1274716]
[1761889273252,0.72,186.07,186.04,3.1274716]
[1761889273963,0.2,186.08,186.06,3.1274716]
[1761889274122,0.92,186.08,186.06,3.1274716]
[1761889274436,6.29412738,186.08,186.04,3.1274716]
[1761889274636,0.72,186.07,186.04,3.1274716]
[1761889275558,0.72,186.07,186.03,3.1274716]
[1761889275744,0.72,186.07,186.04,3.1274716]
[1761889276068,6.09434979,186.07,186.04,3.1274716]
[1761889276434,6.09434979,186.07,186.01,3.1274716]
[1761889276435,3.8474716,186.06,186.01,3.1274716]
[1761889276629,3.8474716,186.05,186.0,3.1274716]
[1761889276839,3.8474716,186.05,185.99,3.1274716]
[1761889277032,0.72,186.04,185.99,3.1274716]
[1761889277655,6.09535422,186.04,185.99,3.1274716]
[1761889278153,0.71,186.03,185.99,3.1274716]
[1761889278947,6.08567237,186.03,185.99,3.1274716]
[1761889279355,0.71,186.02,185.99,3.1274716]
[1761889284460,6.08580339,186.02,185.98,3.1274716]
[1761889284661,6.08580339,186.02,185.97,71.48882769]
[1761889284662,6.08580339,186.02,185.97,74.61629929]
[1761889284865,0.71,186.01,185.97,74.61629929]
[1761889285068,0.71,186.01,185.97,12.91629929]
[1761889286065,0.71,186.01,185.98,3.1274716]
[1761889287963,5.37580339,186.02,185.98,3.1274716]
[1761889288165,6.08580339,186.02,185.98,3.1274716]
[1761889288468,0.71,186.01,185.98,3.1274716]
[1761889288668,0.71,186.01,185.96,61.7]
[1761889288872,0.71,186.01,185.96,3.1274716]
[1761889289079,3.8374716,186.01,185.95,9.78882769]
[1761889289273,3.1274716,186.0,185.95,9.78882769]
[1761889289448,5.37663315,185.99,185.95,9.78882769]
[1761889289765,6.03663315,185.99,185.95,9.78882769]
[1761889289963,0.66,185.98,185.95,9.78882769]
[1761889290167,5.37663315,185.99,185.95,13.63629929]
[1761889290168,6.03663315,185.99,185.95,13.63629929]
[1761889290465,0.66,185.99,185.96,3.1274716]
[1761889290669,0.66,185.99,185.95,15.88655733]
[1761889290851,0.66,185.99,185.96,3.1274716]
[1761889295067,0.66,185.99,185.95,18.29407364]
[1761889295278,9.16412285,185.99,185.94,3.1274716]
[1761889295575,9.16412285,185.99,185.94,12.91629929]
[1761889295775,0.66,185.98,185.94,12.91629929]
[1761889297763,0.66,185.98,185.95,3.1274716]
[1761889298865,6.03700756,185.98,185.95,3.1274716]
[1761889299370,0.66,185.97,185.95,3.1274716]
[1761889301674,0.66,185.97,185.94,15.16689808]
[1761889301872,0.66,185.97,185.95,3.1274716]
[1761889302049,0.66,185.97,185.94,15.16689808]
[1761889302250,0.66,185.97,185.95,3.1274716]
[1761889307680,34.02998969,186.04,185.96,3.1274716]
[1761889307856,0.66,186.01,185.98,3.1274716]
[1761889308181,0.66,186.01,185.96,3.1274716]
[1761889308182,3.7874716,186.01,185.96,3.1274716]
[1761889308556,0.66,186.0,185.96,3.1274716]
[1761889308971,6.0365841,186.0,185.96,3.1274716]
[1761889309473,0.66,185.99,185.96,3.1274716]
[1761889309780,0.66,185.99,185.97,3.1274716]
[1761889310480,0.66,186.02,185.98,3.1274716]
[1761889310681,3.9792991,186.01,185.99,3.1274716]
[1761889311252,4.6392991,186.01,185.98,3.1274716]
[1761889311471,0.66,186.0,185.98,3.1274716]
[1761889311864,0.66,186.0,185.96,6.09743737]
[1761889311865,0.66,186.0,185.97,3.1274716]
[1761889312360,0.66,186.0,185.96,3.1274716]
[1761889312361,4.64046261,186.0,185.96,3.1274716]
[1761889312762,0.66,185.99,185.96,3.1274716]
[1761889313168,6.03672949,185.99,185.96,3.1274716]
[1761889313664,0.66,185.98,185.96,3.1274716]
[1761889314477,6.03699474,185.98,185.95,3.1274716]
[1761889314796,0.66,185.98,185.94,15.88689531]
[1761889315081,0.66,185.97,185.95,3.1274716]
[1761889315561,4.64426214,185.98,185.95,3.1274716]
[1761889315982,0.66,185.97,185.95,3.1274716]
[1761889316880,3.1274716,186.0,185.96,3.8474716]
[1761889316881,0.66,186.0,185.96,3.8474716]
[1761889317077,3.98360677,185.99,185.97,3.1274716]
[1761889317390,0.66,185.99,185.96,3.1274716]
[1761889317586,0.66,185.98,185.96,3.1274716]
[1761889321191,5.37611678,186.01,185.97,3.7874716]
[1761889321373,3.98560254,186.0,185.98,2.0017543]
[1761889321570,3.98560254,185.99,185.98,2.0017543]
[1761889323173,3.98560254,185.99,185.97,2.0017543]
[1761889323371,0.67,186.0,185.97,2.0017543]
[1761889323675,3.98656606,185.99,185.97,2.0017543]
[1761889323887,0.67,186.0,185.97,2.0017543]
[1761889324086,3.98656465,185.99,185.97,2.0017543]
[1761889324406,0.67,186.0,185.97,2.0017543]
[1761889324700,3.98689477,185.99,185.97,2.0017543]
[1761889324901,6.04634423,186.0,185.97,2.0017543]
[1761889325074,3.98729789,185.99,185.97,2.0017543]
[1761889325274,6.04634423,186.0,185.97,2.0017543]
[1761889325491,3.98790774,185.99,185.97,2.0017543]
[1761889325694,6.04634423,186.0,185.97,2.0017543]
[1761889325885,3.98781365,185.99,185.97,2.0017543]
[1761889326078,6.04634423,186.0,185.97,2.0017543]
[1761889326275,3.98781405,185.99,185.97,2.0017543]
[1761889326475,6.04634423,186.0,185.97,2.0017543]
[1761889326698,3.98723202,185.99,185.97,2.0017543]
[1761889326898,6.04634423,186.0,185.97,2.0017543]
[1761889327194,3.98664112,185.99,185.97,2.0017543]
[1761889327491,3.98664112,185.98,185.95,63.7017543]
[1761889327805,3.98664112,185.97,185.96,2.0017543]
[1761889329898,4.65664112,185.97,185.95,63.7017543]
[1761889330083,0.67,185.97,185.95,2.0017543]
[1761889330285,0.67,185.97,185.94,15.16667547]
[1761889330286,18.81720429,186.0,185.94,9.78882769]
[1761889330514,18.81720429,186.0,185.93,5.3766356]
[1761889330515,5.99012344,185.99,185.93,2.0017543]
[1761889330673,3.98836914,185.98,185.95,2.0017543]
[1761889330998,3.98836914,185.97,185.95,9.78882769]
[1761889331180,6.04634408,186.0,185.96,0.66]
[1761889331381,3.9888029,185.99,185.96,0.66]
[1761889331707,3.9888029,185.98,185.96,0.66]
[1761889332005,3.9888029,185.97,185.95,10.44882769]
[1761889332187,6.04665421,185.99,185.96,2.0017543]
[1761889332386,3.98870462,185.98,185.95,10.44882769]
[1761889332598,3.98870462,185.97,185.95,10.44882769]
[1761889332780,3.98870462,185.96,185.95,10.44882769]
[1761889333100,20.592,186.01,185.95,15.82661741]
[1761889333101,26.63834217,186.01,185.95,15.82661741]
[1761889333300,4.65913347,186.0,185.95,9.78882769]
[1761889333499,3.98913347,185.99,185.98,2.0017543]
[1761889333682,4.65913347,185.99,185.98,2.0017543]
[1761889334084,4.65913347,185.99,185.97,2.0017543]
[1761889334281,4.65913347,185.98,185.96,2.0017543]
[1761889334494,4.65913347,185.97,185.94,63.7017543]
[1761889334797,3.98913347,185.96,185.94,2.0017543]
[1761889335002,3.98913347,185.95,185.94,2.0017543]
[1761889335705,3.98913347,185.95,185.93,2.0017543]
[1761889335905,0.67,185.96,185.93,2.0017543]
[1761889336088,3.98772198,185.95,185.93,2.0017543]
[1761889336293,6.04750926,185.96,185.94,2.0017543]
[1761889336486,3.98744551,185.95,185.94,2.0017543]
[1761889337332,3.98744551,185.95,185.94,2.6717543]
[1761889337506,3.98744551,185.95,185.94,2.0017543]
[1761889337805,0.69,185.99,185.94,8.04983325]
[1761889337996,3.9874178,185.98,185.97,2.0017543]
[1761889345310,3.9874178,185.98,185.94,67.07643665]
[1761889345311,10.05434278,185.98,185.94,67.07643665]
[1761889345489,10.05434278,185.98,185.94,61.7]
[1761889345490,4.6774178,185.97,185.94,61.7]
[1761889345691,3.9874178,185.96,185.94,61.7]
[1761889345910,3.9874178,185.95,185.94,61.7]
[1761889346320,4.6774178,185.95,185.9,64.51165878]
[1761889346499,4.6753411,185.94,185.92,2.0017543]
[1761889346809,4.6753411,185.94,185.91,2.0017543]
[1761889346810,3.9853411,185.93,185.91,2.0017543]
[1761889346993,3.9853411,185.92,185.91,2.0017543]
[1761889347192,0.69,185.93,185.91,2.0017543]
[1761889347403,3.98331988,185.92,185.9,2.0017543]
[1761889347598,6.0685029,185.93,185.9,2.0017543]
[1761889347801,3.98353877,185.92,185.9,2.0017543]
[1761889348006,6.0685029,185.93,185.9,2.0017543]
[1761889348217,3.98349384,185.92,185.9,2.0017543]
[1761889348416,6.0685029,185.93,185.9,2.0017543]
[1761889348603,3.98163236,185.92,185.91,2.0017543]
[1761889349824,10.05028984,185.92,185.88,15.54557012]
[1761889350117,4.66983056,185.91,185.89,2.0017543]
[1761889350416,3.97983056,185.9,185.88,11.89058199]
[1761889350620,0.69,185.91,185.88,11.89058199]
[1761889350934,3.97703936,185.9,185.88,2.1017543]
[1761889351113,0.69,185.91,185.88,2.1017543]
[1761889351413,5.37952552,185.89,185.88,2.1017543]
[1761889351618,6.06952552,185.89,185.88,2.1017543]
[1761889351796,5.37952552,185.89,185.88,0.1]
[1761889351997,10.04415426,185.89,185.88,0.1]
[1761889354417,6.06952552,185.89,185.88,0.1]
[1761889357805,10.03276985,185.89,185.88,0.1]
[1761889358321,6.06952552,185.89,185.88,0.1]
[1761889360113,0.69,185.89,185.88,0.1]
[1761889360698,6.06952552,185.89,185.88,0.1]
[1761889363711,0.67,185.89,185.88,0.1]
[1761889364323,6.04952552,185.89,185.88,0.1]
[1761889382217,8.05127982,185.89,185.88,0.1]
[1761889383425,9.18179515,185.89,185.88,0.1]
[1761889384449,6.04952552,185.89,185.88,0.1]
[1761889386320,10.01740161,185.89,185.88,0.1]
[1761889386519,6.04952552,185.89,185.88,0.1]
[1761889386720,10.01781157,185.89,185.88,0.1]
[1761889386935,6.04952552,185.89,185.88,0.1]
[1761889387329,10.01957637,185.89,185.88,0.1]
[1761889388844,6.04952552,185.89,185.88,0.1]
[1761889389141,10.01983837,185.89,185.88,0.1]
[1761889390829,13.152108,185.89,185.88,0.1]
[1761889393527,16.73490998,185.89,185.88,0.1]
[1761889394643,16.73490998,185.89,185.88,1e-08]
[1761889394644,13.152108,185.89,185.88,1e-08]
[1761889406925,15.30931441,185.89,185.88,1e-08]
[1761889407132,13.152108,185.89,185.88,1e-08]
[1761889409752,15.30931441,185.89,185.88,1e-08]
[1761889411052,13.152108,185.89,185.88,1e-08]
[1761889412451,15.30931441,185.89,185.88,1e-08]
[1761889416453,28.08812822,185.89,185.85,1e-08]
[1761889416759,23.72426963,185.86,185.85,1e-08]
[1761889416959,33.07497632,185.86,185.85,1e-08]
[1761889417255,39.4827538,185.86,185.85,1e-08]
[1761889417756,37.32508193,185.86,185.85,1e-08]
[1761889427166,43.98163999,185.86,185.85,1e-08]
[1761889427358,20.592,185.82,185.78,0.67]
[1761889427668,9.78882769,185.85,185.78,0.67]
[1761889427669,20.592,185.79,185.78,0.67]
[1761889427865,24.56231285,185.79,185.77,0.67]
[1761889428067,3.13226963,185.8,185.77,0.67]
[1761889428365,5.38271073,185.78,185.77,0.67]
[1761889428559,5.38271073,185.78,185.73,3.13226963]
[1761889428762,21.97175719,185.78,185.73,3.80226963]
[1761889428963,3.97148165,185.77,185.74,0.67]
[1761889429469,5.38271073,185.78,185.75,3.13226963]
[1761889430068,5.38271073,185.78,185.76,0.67]
[1761889430448,18.83745963,185.8,185.76,0.67]
[1761889430954,16.85428505,185.86,185.79,3.13226963]
[1761889431150,3.13226963,185.84,185.79,3.13226963]
[1761889431351,3.97131483,185.83,185.8,0.67]
[1761889431551,3.97131483,185.82,185.8,0.67]
[1761889431763,3.97131483,185.81,185.8,0.67]
[1761889432967,9.35315649,185.81,185.8,0.67]
[1761889433968,20.592,185.82,185.8,3.80226963]
[1761889434161,13.45218133,185.85,185.81,3.13226963]
[1761889434373,3.97332377,185.84,185.82,0.67]
[1761889434539,3.97332377,185.83,185.82,0.67]
[1761889434947,9.35458621,185.83,185.82,0.67]
[1761889436647,9.35458621,185.83,185.81,0.67]
[1761889436863,3.97332377,185.82,185.81,0.67]
[1761889441079,3.97332377,185.82,185.81,3.80226963]
[1761889441382,25.97281424,185.85,185.81,3.80226963]
[1761889441554,3.97943938,185.84,185.82,3.80226963]
[1761889441886,20.592,185.85,185.82,3.80226963]
[1761889442075,3.97936874,185.84,185.83,0.67]
[1761889442873,3.97936874,185.84,185.83,3.80226963]
[1761889443181,25.97187048,185.88,185.83,3.80226963]
[1761889443371,3.97922749,185.87,185.86,2.00428861]
[1761889443874,3.97922749,185.87,185.86,2.67428861]
[1761889444086,39.23850603,185.99,185.86,2.67428861]
[1761889444087,5.3793417,185.9,185.86,2.67428861]
[1761889444290,3.9785547,185.89,185.88,2.00428861]
[1761889444798,3.9785547,185.89,185.88,2.67428861]
[1761889444967,3.9785547,185.89,185.88,0.67]
[1761889445549,9.35808022,185.89,185.86,0.67]
[1761889445793,3.9785547,185.88,185.86,0.67]
[1761889445955,3.97578415,185.87,185.84,16.17468661]
[1761889446160,3.97549138,185.86,185.84,0.67]
[1761889446463,0.71,185.88,185.84,0.67]
[1761889446685,3.97527089,185.87,185.84,0.67]
[1761889446860,3.97527089,185.86,185.84,0.67]
[1761889447062,5.38010437,185.87,185.84,0.67]
[1761889447361,3.97527033,185.86,185.84,0.67]
[1761889448453,5.38010437,185.87,185.84,0.67]
[1761889448673,3.97453602,185.86,185.84,0.67]
[1761889448983,5.38010437,185.87,185.84,0.67]
[1761889449183,3.97453642,185.86,185.84,0.67]
[1761889449565,3.97453642,185.86,185.82,2.67428861]
[1761889449765,3.97453642,185.86,185.83,0.67]
[1761889450357,3.97453642,185.86,185.83,2.67428861]
[1761889450886,3.97453642,185.86,185.84,2.00428861]
[1761889451064,5.37939356,185.9,185.85,2.67428861]
[1761889451265,3.97439346,185.89,185.86,2.00428861]
[1761889451471,3.97439346,185.88,185.86,2.67428861]
[1761889451690,5.37958285,185.89,185.87,0.67]
[1761889451977,3.97430189,185.88,185.87,0.67]
[1761889452180,5.37958285,185.89,185.87,0.67]
[1761889452983,5.37923614,185.9,185.87,0.67]
[1761889453185,3.97327199,185.89,185.87,0.67]
[1761889456067,5.37923614,185.9,185.87,0.67]
[1761889456372,4.68189933,185.89,185.85,2.00428861]
[1761889456573,0.68,185.88,185.84,2.67428861]
[1761889456965,6.05999246,185.88,185.85,0.66]
[1761889457167,6.05999246,185.88,185.84,2.00428861]
[1761889457378,6.05999246,185.88,185.84,2.66428861]
[1761889457568,6.05999246,185.88,185.84,0.66]
[1761889457782,6.05999246,185.88,185.84,2.66428861]
[1761889459170,6.05999246,185.88,185.85,2.00428861]
[1761889460375,0.68,185.87,185.85,2.00428861]
[1761889460797,5.37999246,185.88,185.85,2.00428861]
[1761889460974,6.05999246,185.88,185.85,2.00428861]
[1761889462285,0.68,185.87,185.85,2.00428861]
[1761889462489,0.68,185.87,185.84,2.00428861]
[1761889462889,3.97085287,185.88,185.85,2.66428861]
[1761889463079,20.592,185.87,185.86,2.00428861]
[1761889463496,25.97210437,185.87,185.86,2.00428861]
[1761889465590,25.97210437,185.87,185.85,2.00428861]
[1761889465969,25.97210437,185.87,185.82,5.38151678]
[1761889465970,39.4223653,185.87,185.82,61.7]
[1761889466170,4.65127324,185.86,185.82,2.00428861]
[1761889466374,0.68,185.85,185.81,2.00428861]
[1761889466594,4.65127324,185.85,185.81,2.00428861]
[1761889466793,0.68,185.85,185.81,2.00428861]
[1761889467171,5.38097287,185.84,185.81,2.00428861]
[1761889467590,20.592,185.81,185.63,61.8]
[1761889467794,3.97014392,185.8,185.75,2.00428861]
[1761889468000,3.97014392,185.8,185.69,15.27151101]
[1761889468001,26.56643253,185.79,185.73,2.00428861]
[1761889468173,20.592,185.76,185.73,2.00428861]
[1761889468487,20.592,185.76,185.72,2.00428861]
[1761889468676,0.71,185.77,185.72,2.00428861]
[1761889469081,0.71,185.77,185.72,2.70428861]
[1761889469082,5.38329026,185.76,185.72,2.70428861]
[1761889470176,5.38329026,185.76,185.73,2.00428861]